Cogmind - Beta 9.4 @@@ ROGUE MODE // 2020.02.08 @ 15:01:04 Player: 3.14 Result: Destroyed by as-14284 with Assembled Heavy Rifle Performance ------------- Evolutions (0) 0 Regions Visited (2) 400 Robots Destroyed (12) 60 Value Destroyed (149) 149 Prototype IDs (0) 0 Alien Tech Used (0) 0 Bonus (0) 0 TOTAL SCORE: 609 Bonus ------- None Cogmind --------- Core Integrity 0/250 Matter 300/300 Energy 98/100 System Corruption 3% Temperature Cool (0) Movement Core (50) Location -10/Mines Parts ------- > --- POWER (1) -------- (None) > --- PROPULSION (2) --- Aluminum Leg Aluminum Leg > --- UTILITY (2) ------ (None) > --- WEAPON (2) ------- (None) > --- INVENTORY (4) ---- Large Storage Unit Light EM Pulse Cannon Light EM Pulse Cannon Peak State ------------ > --- POWER ------------ Ion Engine > --- PROPULSION ------- Light Treads Light Treads > --- UTILITY ---------- Large Storage Unit Large Storage Unit > --- WEAPON ----------- Assault Rifle Light Assault Rifle > --- INVENTORY -------- Aluminum Leg Aluminum Leg Aluminum Leg Aluminum Leg Aluminum Leg Improved Heat Sink Medium Storage Unit High-capacity Matter Pod High-capacity Matter Pod EM Pulse Gun Light EM Pulse Cannon Light EM Pulse Cannon Light EM Pulse Cannon Light EM Pulse Cannon [Rating: 9] Favorites ----------- Power Ion Engine Engine Ion Engine Propulsion Light Treads Treads Light Treads Leg Aluminum Leg Utility Large Storage Unit Storage Large Storage Unit Weapon Light Assault Rifle Ballistic Gun Light Assault Rifle Build | -11 -10 -10 ------- Run | Scr Mat Min Slots Evolved . | . . . Power . | . . . Propulsion . | . . . Utility . | . . . Weapon . | . . . Parts Attached 13 | 7 2 4 Power 2 | 1 . 1 Engine 2 | 1 . 1 Core . | . . . Reactor . | . . . Propulsion 4 | 2 . 2 Treads 2 | 2 . . Leg 2 | . . 2 Wheel . | . . . Hover . | . . . Flight . | . . . Utility 4 | 2 2 . Device . | . . . Storage 4 | 2 2 . Processor . | . . . Hackware . | . . . Protection . | . . . Artifact . | . . . Weapon 3 | 2 . 1 Energy Gun . | . . . Energy Cannon . | . . . Ballistic Gun 3 | 2 . 1 Ballistic Cannon . | . . . Launcher . | . . . Special Weapon . | . . . Impact Weapon . | . . . Slashing Weapon . | . . . Piercing Weapon . | . . . Special Melee Weapon . | . . . Unidentified Prototypes . | . . . Parts Lost 4 | . . 4 Power . | . . . Propulsion 2 | . . 2 Utility . | . . . Weapon 2 | . . 2 Highest Loss Streak 3 | . . 3 Average Slot Usage (%) 94 | . 100 79 Engine 12 | . 14 10 Treads 27 | . 28 25 Storage 25 | . 28 20 Ballistic Gun 25 | . 28 20 Naked Turns . | . . . Heaviest Build 40 | 16 40 40 Greatest Support 40 | 40 40 40 Greatest Overweight (x) . | . . . Average Overweight (x) . | . . . Largest Inventory Capacity 16 | 8 16 16 Average Capacity 12 | 5 14 12 Most Carried 16 | 3 14 16 Average Carried 9 | 1 10 11 Final Capacity 16 | 8 16 4 Final Carried 14 | 3 14 3 Class Distribution -------------------- 100% | Mutant Dominant Class ---------------- Mutant | -10/Materials Mutant | -10/Mines Resources | -11 -10 -10 ----------- Run | Scr Mat Min Matter Collected 548 | 277 208 63 Remotely . | . . . Salvage Created 377 | 74 250 53 Parts 17 | 3 10 4 Haulers Intercepted 1 | . 1 . Recyclers Shooed 2 | . 2 . Parts Field Recycled . | . . . Retrieved Matter . | . . . Parts Self-Destructed . | . . . Prevented . | . . . Kills | -11 -10 -10 ------- Run | Scr Mat Min Combat Hostiles Destroyed 9 | . 3 6 Melee 2 | . . 2 Guns 7 | . 3 4 Classes Destroyed 5 | 1 2 2 Hauler 1 | . 1 . Recycler 2 | 1 1 . Swarmer 2 | . . 2 Grunt 3 | . 3 . Assembled 4 | . . 4 Best Kill Streak 3 | 1 3 2 Combat Bots Only 2 | . 2 2 Max Kills in Single Turn 1 | 1 1 1 Gunslinging . | . . . Exploded . | . . . Melee 1 | . . 1 Uniques/NPCs Destroyed . | . . . Combat | -11 -10 -10 -------- Run | Scr Mat Min Damage Taken 1023 | . 290 733 Core 254 | . 41 213 Absorbed by Shields . | . . . Core Remaining (%) 100 | 100 . . Volleys Fired 62 | 4 36 22 Largest 2 | 2 2 2 Hottest 40 | 40 40 40 Shots Fired 118 | 8 72 38 Gun 118 | 8 72 38 Cannon . | . . . Launcher . | . . . Special . | . . . Kinetic 118 | 8 72 38 Thermal . | . . . Explosive . | . . . Electromagnetic . | . . . Robot Hit Streak 9 | 2 9 7 Robot Miss Streak 3 | 1 3 3 Penetration Max . | . . . Secondary Targets 3 | . . 3 Max Gunslinging Chain 1 | . . 1 Shots Hit Robots 83 | 5 52 26 Core Hits 27 | 2 12 13 Critical Hits 2 | . . 2 Critical Kills . | . . . Critical Parts Destroyed 2 | . . 2 Melee Attacks . | . . . Impact . | . . . Slashing . | . . . Piercing . | . . . Sneak Attacks . | . . . Combat Hostiles . | . . . Follow-up Attacks . | . . . Damage Inflicted 834 | 64 502 268 Guns 821 | 60 499 262 Cannons . | . . . Explosions . | . . . Melee . | . . . Ramming 13 | 4 3 6 Kinetic 821 | 60 499 262 Thermal . | . . . Explosive . | . . . Electromagnetic . | . . . Impact . | . . . Slashing . | . . . Piercing . | . . . Highest Corruption 3 | . . 3 Average Corruption 3 | . . 3 Corruption Purged . | . . . Effects 2 | . . 2 Heat Flow Errors 1 | . . 1 Data Loss (minor) 1 | . . 1 Overload Shots . | . . . Overflow Damage . | . . . Projectiles . | . . . Explosions . | . . . Melee . | . . . Knockbacks . | . . . Impact . | . . . Kinetic . | . . . Secondary . | . . . Self-Inflicted Damage . | . . . Shots . | . . . Rammed 11 | 2 1 8 Targets Rammed 13 | 2 1 10 Kicked . | . . . Crushed 2 | . . 2 Highest Temperature 252 | . 18 252 Average Temperature 47 | . 8 127 Received Heat Transfer 211 | . 171 40 Siege Activations . | . . . Robots Corrupted . | . . . Combat Hostiles . | . . . Parts Fried . | . . . Impact Corruptions . | . . . Robots Melted . | . . . Combat Hostiles . | . . . Parts Melted . | . . . Heat Transferred . | . . . Parts Sabotaged . | . . . Parts Stolen . | . . . Parts Stripped . | . . . Power Chain Reactions . | . . . Missiles Intercepted . | . . . Alert | -11 -10 -10 ------- Run | Scr Mat Min Peak Influence 115 | 5 115 84 Average Influence 50 | 1 51 73 Maximum Alert Level . | . . . Low Security (%) 100 | 100 100 100 Level 1 . | . . . Level 2 . | . . . Level 3 . | . . . Level 4 . | . . . Level 5 . | . . . High Security . | . . . Max Security . | . . . Squads Dispatched 1 | . 1 . Investigation . | . . . Extermination . | . . . Reinforcement 1 | . 1 . Assault . | . . . Garrison . | . . . Intercept . | . . . Construction Impeded . | . . . Haulers Reinforced . | . . . Stealth | -11 -10 -10 --------- Run | Scr Mat Min Distress Signals 1 | . . 1 Communications Jammed . | . . . Distress Signals . | . . . Times Spotted 27 | . 10 17 Peak Tracking Total 20 | . 4 20 Tactical Retreats 6 | . 4 2 Traps | -11 -10 -10 ------- Run | Scr Mat Min Traps Triggered . | . . . Indirectly . | . . . Trap Hack Attempts . | . . . Triggered . | . . . Disarmed . | . . . Reprogrammed . | . . . Reused . | . . . Traps Extracted . | . . . Installed . | . . . Triggered . | . . . Machines | -11 -10 -10 ---------- Run | Scr Mat Min Machines Disabled . | . . . Max in Single Turn . | . . . Machines Sabotaged . | . . . Garrisons Compromised . | . . . Overloaded Fab Kills . | . . . Fab Network Shutdowns . | . . . Hacking | -11 -10 -10 --------- Run | Scr Mat Min Machines Accessed 1 | . 1 . Terminals 1 | . 1 . Fabricators . | . . . Repair Stations . | . . . Recycling Units . | . . . Scanalyzers . | . . . Garrison Access . | . . . Total Hacks 1 | . 1 . Successful 1 | . 1 . Failed . | . . . Catastrophic . | . . . Database Lockouts . | . . . Manual 1 | . 1 . Terminals 1 | . 1 . Fabricators . | . . . Repair Stations . | . . . Recycling Units . | . . . Scanalyzers . | . . . Garrison Access . | . . . Terminal Hacks . | . . . Fabricator Hacks . | . . . Repair Station Hacks . | . . . Recycling Unit Hacks . | . . . Scanalyzer . | . . . Garrison Access Hacks . | . . . Unauthorized Hacks 2 | . 2 . Terminals 1 | . 1 . Assimilate 1 | . 1 . Fabricators . | . . . Repair Stations . | . . . Recycling Units . | . . . Scanalyzers . | . . . Garrison Access . | . . . Data Cores Recovered . | . . . Used . | . . . Hacking Detections 1 | . 1 . Full Trace Events . | . . . Feedback Events . | . . . Feedback Blocked . | . . . Robot Schematics Acquired . | . . . Robots Built . | . . . Matter . | . . . Time . | . . . Total Robot Build Rating . | . . . Part Schematics Acquired . | . . . Parts Built . | . . . Matter . | . . . Time . | . . . Total Part Build Rating . | . . . Parts Repaired . | . . . Time . | . . . Parts Recycled . | . . . Recycled Matter . | . . . Retrieved Matter . | . . . Retrieved Components . | . . . Parts Scanalyzed . | . . . Part Schematics Acquired . | . . . Parts Damaged . | . . . Bothacking | -11 -10 -10 ------------ Run | Scr Mat Min Used RIF Installer . | . . . Robots Hacked . | . . . Non-combat . | . . . Combat . | . . . Robot Hacks Applied . | . . . Relay Couplers Released . | . . . Robots Rewired . | . . . Allies Hacked . | . . . Hacks Repelled . | . . . Allies | -11 -10 -10 -------- Run | Scr Mat Min Total Allies . | . . . Largest Group . | . . . Highest-Rated Group . | . . . Highest-Rated Ally . | . . . Total Orders . | . . . Ally Attacks . | . . . Total Damage . | . . . Kills . | . . . Allies Corrupted . | . . . Allies Melted . | . . . Intel | -11 -10 -10 ------- Run | Scr Mat Min Robot Analysis Total . | . . . Derelict Logs Recovered 1 | . . 1 Drone Launches . | . . . Drone Recoveries . | . . . Exploration | -11 -10 -10 ------------- Run | Scr Mat Min Turns Passed 595 | 80 365 150 Spaces Moved 254 | 39 155 60 Core 39 | 8 . 31 Treads 215 | 31 155 29 Legs . | . . . Wheels . | . . . Hover . | . . . Flight . | . . . Fastest Speed 50 | 50 160 50 Average Speed 143 | 137 160 103 Slowest Speed 160 | 160 160 160 Overloaded Moves . | . . . Propulsion Burnouts . | . . . Robots Hopped . | . . . Cave-ins Triggered . | . . . Exploration Rate (%) 18 | 4 32 19 Regions Visited 2 Branch Regions 1 Pre-discovered Areas . | . . . Known Exits Taken . | . . . Unknown Exits Taken 2 | 1 1 . Scrap Searched . | . . . Spaces Dug . | . . . Terrain Destroyed . | . . . Melee . | . . . Projectile . | . . . AOE . | . . . Actions | -11 -10 -10 --------- Run | Scr Mat Min Total 373 | 54 207 112 Wait 7 | . 1 6 Move 252 | 38 154 60 Hop . | . . . Pick Up 18 | 3 11 4 Fast Attach 7 | 7 . . Attach 3 | . . 3 Detach . | . . . Swap 3 | . 2 1 Drop 8 | . 2 6 Fire 62 | 4 36 22 Melee . | . . . Ram . | . . . Kick . | . . . Crush 13 | 2 1 10 Escape Stasis . | . . . Rewire . | . . . Trap . | . . . Miscellaneous . | . . . Route ------- -11/Scrapyard -10/Materials -10/Mines (discovered 1 exit: Mat) History --------- Turn | Location | Event 8 | -11/Scrapyard | Discovered new exit (range 15) 81 | -11/Scrapyard | Entered Materials 195 | -10/Materials | Discovered new exit (range 14) 310 | -10/Materials | Build established: Mutant 446 | -10/Materials | Entered Mines 509 | -10/Mines | Assembled infested the area 554 | -10/Mines | Core integrity fell below 50% 576 | -10/Mines | Core integrity fell below 20% 596 | -10/Mines | Identified exit to Materials 596 | -10/Mines | Destroyed by as-14284 with Assembled Heavy Rifle Last Messages --------------- 00566_ Slammed into as-84854. 00569_ Slammed into as-84244. 00571_ Crushed as-84244. 00571_ as-84244 destroyed. 00572_ Slammed into as-70408. 00573_ Lgt. Treads destroyed. 00574_ Slammed into as-00954. 00575_ Acquired 11 matter. 00576_ Slammed into as-33415. 00577_ Lgt. Assault Rifle destroyed. 00577_ Slammed into as-33415. 00579_ Crushed as-33415. 00579_ as-33415 destroyed. 00580_ Acquired 6 matter. 00581_ Acquired 10 matter. 00582_ Acquired Lrg. Storage Unit. 00583_ System corrupted: Heat flow error (+257). 00587_ Lgt. Treads destroyed. 00593_ Acquired 10 matter. 00596_ Acquired derelict log, extracted data. Map ----- +----------------------------------------------------+ | ??????# #?????####???????????????????? | | ??????# #????## ##??????????????????? | | ??????#!#????#! #??????????????????? | | ??????#]######!* ##?????????????????? | | ??????# [!]=*[! #?????????????????? | | ??????#=###### = #?????????????????? | | ??????# #????## ##?????????????????? | | ??????# #?????#####??????????????????? | | ??????# #????????????????????????????? | | ??????# #????????????????????????????? | | ??????# #????????????????????????????? | | ??????# #????????????????????????????? | | ??????# #????????????????????????????? | | ??????# #????????????????????????????? | | ??????# #????????????????????????????? | | ??????# #????????????????????????????? | | ??????# #????????????????????????????? | | ??###?# #????????????????????????????? | | ?## ## #????????????????????????????? | | ?# < #????????????????????????????? | | ??# ##???????????????????????????? | | ??# ! ##??????????????????????????? | | ??## |%= #??????????????????????????? | | ???####** #??????????????????????????? | | ?????## a ###########????????????????? | | ?????# ! @ #????????????????? | | ?????# ### # % #??????????????? | | ?????# ?? ???## ???????????? | | ?????# %?? ???????????????????? | | ?????# ? a ??????????????????? | | ?????## ?= a%????????????????? | | ??????## % ???????????????? | | ???????# # !%* ??????????????? | | ??????? ### = ????????????? | | ??????? # ??##### # ???????????? | | ???????# ####???????##? ????????????? | | ??????? #??????????????????????????? | | ???????# ???????????????????????????? | | ???????###???????????????????????????? | | ?????????????????????????????????????? | | ?????????????????????????????????????? | | ?????????????????????????????????????? | | ?????????????????????????????????????? | | ?????????????????????????????????????? | | ?????????????????????????????????????? | | ?????????????????????????????????????? | | ?????????????????????????????????????? | | ?????????????????????????????????????? | | ?????????????????????????????????????? | | ?????????????????????????????????????? | +----------------------------------------------------+ Best States ------------- Heat Dissipation 25 Energy Generation 10 Energy Capacity 250 Matter Stores 300 Matter Capacity 300 Sight Range 16 Terrain Scan Density 10 Evasion (%) 50 Recoil Reduction 2 Item Schematics ----------------- None Robot Schematics ------------------ None Fabricated ------------ Nothing Alien Tech Used ----------------- None Achievements -------------- None Challenges ------------ None Game ------ Seed SpectralSalvageAutogun Manual? 0 Play Time 00:05:08 Cumulative 438.7 hours Start 2020.02.08 @ 14:57:19 End 2020.02.08 @ 15:01:04 Sessions 1 Manual Loads 0 Difficulty Rogue Special Mode None Game No. 764 Rogue 764 Adventurer 0 Explorer 0 Win Type - Total 33 Types 24/0/4/4/1/0/0 Lore% 93 Gallery% 92 Achievement% 80 Wizard Run 0 Options --------- ASCII 1 Keyboard 0 Movement Numpad Keybinds 0 Fullscreen 0 Font 14/SmallcapsGlow Map View 76x50 Tactical HUD 1 Map Filters NONE Filters NONE Steam 1 RUN: 5cba988b-37cc-4480-bfed-c9a1edfac888